fUSD/lending_fUSD_20260324
["ID","MTS","AMOUNT","RATE_DAILY","PERIOD"]
[408880274,1774381843870,-201.932861,0.00015747,2]
[408880275,1774381843880,-279.9045709,0.00015747,2]
[408880276,1774381843890,-771.01748645,0.00015747,2]
[408880277,1774381843899,-1215.43,0.00015753,2]
[408880278,1774381843910,-150.0,0.00015755,2]
[408880279,1774381843919,-992.02,0.0001576,2]
[408880280,1774381843928,-625.92,0.00015766,2]
[408880281,1774381843938,-625.92,0.00015766,2]
[408880282,1774381843947,-625.92,0.00015766,2]
[408880283,1774381843957,-625.92,0.00015766,2]
[408880284,1774381843967,-626.0572541,0.00015766,2]
[408880285,1774381843977,-809.0,0.00015776,2]
[408880286,1774381843986,-809.0,0.00015785,2]
[408880287,1774381843995,-150.0,0.00015788,2]
[408880288,1774381844004,-150.0,0.00015795,2]
[408880289,1774381844014,-2000.0,0.000158,2]
[408880290,1774381844024,-5888.0,0.00015803,2]
[408880291,1774381844034,-1008.47953738,0.00015816,2]
[408880292,1774381844044,-1630.13314617,0.00015816,2]
[408880293,1774381844054,-2000.0,0.00015816,2]
[408880294,1774381844064,-2000.0,0.00015816,2]
[408880295,1774381844074,-150.0,0.00015819,2]
[408880296,1774381844083,-190.63003853,0.00015823,2]
[408880297,1774381844092,-314.43783,0.0001584,2]
[408880298,1774381844102,-314.43784,0.0001584,2]
[408880299,1774381844112,-809.0,0.00015842,2]
[408880300,1774381844123,-314.43784,0.0001585,2]
[408880301,1774381844132,-1158.11,0.00015862,2]
[408880302,1774381844142,-439.0,0.00015863,2]
[408880303,1774381844152,-150.0,0.00015868,2]
[408880304,1774381844161,-350.0,0.0001587,2]
[408880305,1774381844170,-150.0,0.00015877,2]
[408880306,1774381844179,-2000.0,0.0001589,2]
[408880307,1774381844190,-9198.3394215,0.00015897,2]
[408880308,1774381844200,-25000.0,0.000159,3]
[408880309,1774381844424,-10000.0,0.000159,2]
[408880310,1774381844435,-1370.62974145,0.000159,2]
[408880311,1774381844451,-9192.1786549,0.000159,3]
[408880312,1774381844461,-382.48939346,0.000159,2]
[408880313,1774381844472,-13116.53243606,0.000159,2]
[408880314,1774381844481,-510.44320502,0.000159,2]
[408880315,1774381844492,-1318.1988727,0.000159,2]
[408880316,1774381844502,-2000.0,0.000159,2]
[408880317,1774381844511,-471.24111356,0.000159,2]
[408880318,1774381844524,-2743.0,0.000159,5]
[408880319,1774381844534,-2199.0,0.000159,5]
[408880320,1774381844544,-2000.0,0.000159,2]
[408880321,1774381844555,-1000.0,0.0001591,2]
[408880322,1774381844576,-1342.18,0.00015913,2]
[408880323,1774381844587,-2554.04,0.00015913,2]
[408880324,1774381844598,-200.0,0.00015915,2]
[408880325,1774381844608,-150.0,0.00015938,2]
[408880326,1774381844618,-154.80716128,0.00015956,2]
[408880327,1774381844629,-3625.57747866,0.0001596,2]
[408880328,1774381844639,-277.67,0.00015967,2]
[408880329,1774381844649,-400.0,0.0001597,2]
[408880330,1774381844659,-400.0,0.0001597,2]
[408880331,1774381844669,-400.0,0.0001597,2]
[408880332,1774381844680,-347.94216551,0.00015973,2]
[408880333,1774381844690,-500.0,0.00015973,2]
[408880334,1774381844700,-500.0,0.00015973,2]
[408880335,1774381844710,-500.0,0.00015973,2]
[408880336,1774381844721,-500.0,0.00015973,2]
[408880337,1774381844731,-500.0,0.00015973,2]
[408880338,1774381844741,-500.0,0.00015973,2]
[408880339,1774381844752,-500.0,0.00015973,2]
[408880340,1774381844761,-500.0,0.00015973,2]
[408880341,1774381844771,-500.0,0.00015973,2]
[408880342,1774381844781,-500.0,0.00015973,2]
[408880343,1774381844791,-500.0,0.00015973,2]
[408880344,1774381844800,-500.0,0.00015973,2]
[408880345,1774381844810,-366.41832896,0.00015973,2]
[408880346,1774381844820,-500.0,0.00015973,2]
[408880347,1774381844830,-500.0,0.00015973,2]
[408880348,1774381844840,-500.0,0.00015973,2]
[408880349,1774381844850,-500.0,0.00015973,2]
[408880350,1774381844860,-500.0,0.00015973,2]
[408880351,1774381844870,-390.12270077,0.00015973,2]
[408880352,1774381844881,-500.0,0.00015973,2]
[408880353,1774381844890,-500.0,0.00015973,2]
[408880354,1774381844900,-500.0,0.00015973,2]
[408880355,1774381844914,-500.0,0.00015973,2]
[408880356,1774381844925,-500.44177829,0.00015973,2]
[408880357,1774381844935,-500.0,0.00015973,2]
[408880358,1774381844945,-500.0,0.00015973,2]
[408880359,1774381844955,-500.0,0.00015973,2]
[408880360,1774381844965,-500.86404044,0.00015973,2]
[408880361,1774381844975,-500.0,0.00015973,2]
[408880362,1774381844985,-500.0,0.00015973,2]
[408880363,1774381844995,-1060.56267897,0.0001599,2]
[408880364,1774381845006,-151.0,0.00015993,2]
[408880365,1774381845016,-151.0,0.00015993,2]
[408880366,1774381845026,-552.69,0.00015995,2]
[408880367,1774381845037,-613.94,0.00015995,2]
[408880368,1774381845048,-98526.3861372,0.00015996,2]
[408880369,1774381845058,-100773.9304577,0.00015996,2]
[408880370,1774381845069,-49569.0088375,0.00015996,2]
[408880371,1774381845079,-5607.6203345,0.00015996,2]
[408880372,1774381845088,-527.2028833,0.00015996,2]
[408880373,1774381845099,-60521.3474185,0.00015996,2]
[408880374,1774381845110,-151.0,0.00015997,2]
[408880375,1774381845120,-666.0,0.00015999,2]
[408880376,1774381845131,-216.86647082,0.00015999,2]
[408880377,1774381845143,-300.15038998,0.00015999,2]
[408880378,1774381845153,-163.92634501,0.00015999,2]
[408880379,1774381845162,-552.69,0.00015999,2]
[408880380,1774381845172,-552.69,0.00015999,2]
[408880381,1774381845182,-552.69,0.00015999,2]
[408880382,1774381845192,-552.69,0.00015999,2]
[408880383,1774381845201,-552.80580688,0.00015999,2]
[408880384,1774381845211,-613.94,0.00015999,2]
[408880385,1774381845221,-613.94,0.00015999,2]
[408880386,1774381845231,-613.94,0.00015999,2]
[408880387,1774381845241,-613.94,0.00015999,2]
[408880388,1774381845252,-614.16553912,0.00015999,2]
[408880389,1774381845263,-1531525.37938195,0.00016,2]
[408880390,1774381845278,-1439080.55617604,0.00016,2]
[408880401,1774381845849,-2207.03894112,0.00016,2]
[408880402,1774381846107,-557.94431981,0.00013881,2]
[408880403,1774381846119,-54490.13511769,0.00013881,2]
[408880404,1774381846129,-10383.38613189,0.00014073,2]
[408880405,1774381846139,-2103.07374998,0.00014073,2]
[408880406,1774381846147,-500.0,0.00014124,2]
[408880407,1774381846157,-500.0,0.00014124,2]
[408880408,1774381846167,-1000.0,0.00015901,2]
[408880409,1774381846175,-1000.0,0.00015901,2]
[408880410,1774381846184,-1000.0,0.00015901,2]
[408880411,1774381846194,-1000.0,0.00015901,2]
[408880412,1774381846203,-3104622.20953974,0.00016,2]
[408880414,1774381846215,-502.76721983,0.00016,2]
[408880417,1774381846226,-23308.6696544,0.00016,2]
[408880484,1774381846849,-296.27641017,0.00014123,2]
[408880491,1774381846901,-203.72358983,0.00014123,2]
[408880493,1774381846910,-500.0,0.00014124,2]
[408880495,1774381846919,-500.0,0.00014124,2]
[408880497,1774381846928,-39961.96922766,0.00015351,2]
[408880509,1774381847029,-500.0,0.00014124,2]
[408880511,1774381847038,-11726.33170466,0.00015351,2]
[408880538,1774381847281,-150.0,0.00013753,2]
[408880540,1774381847290,-280.4257349,0.00014124,2]
[408880551,1774381847454,-219.5742651,0.00014124,2]
[408880552,1774381847463,-500.0,0.00014124,2]
[408880553,1774381847472,-500.0,0.00014124,2]
[408880554,1774381847482,-500.0,0.00014124,2]
[408880555,1774381847493,-180.31740041,0.00014124,2]
[408880556,1774381847503,-10383.38613189,0.00014987,2]
[408880557,1774381847513,-1256.50484871,0.00014987,2]
[408880558,1774381847762,-846.56890127,0.00014987,2]
[408880559,1774381847771,-576.00918346,0.00015351,2]
[408880560,1774381847783,-2783.76932172,0.00015351,2]
[408880561,1774381847793,-1000.0,0.00015901,2]
[408880562,1774381847802,-1000.0,0.00015901,2]
[408880563,1774381847811,-1000.0,0.00015901,2]
[408880564,1774381847820,-993.81745633,0.00015901,2]
[408880565,1774381847831,-6.18254367,0.00015901,2]
[408880566,1774381847841,-1000.0,0.00015901,2]
[408880567,1774381847850,-726.61745633,0.00015901,2]
[408880568,1774381847863,-273.38254367,0.00015901,2]
[408880569,1774381847872,-411.70165696,0.00015901,2]
[408880570,1774381847883,-588.29834304,0.00015901,2]
[408880571,1774381847892,-88.58105258,0.00015901,2]
[408880572,1774381847907,-911.41894742,0.00015901,2]
[408880573,1774381847916,-194.445,0.00015901,2]
[408880574,1774381847925,-6482.21731113,0.00016,2]
[408880575,1774381847937,-1986.11843336,0.00016,2]
[408880576,1774381847995,-154259.4400573,0.00016,2]
[408880577,1774381855141,226.77,7.618e-05,2]
[408880578,1774381855549,226.77,8.019e-05,2]
[408880579,1774381855761,226.77,8.42e-05,2]
[408880580,1774381856612,226.77,8.821e-05,2]
[408880581,1774381856660,226.77,9.222e-05,2]
[408880582,1774381856724,226.77,9.623e-05,2]
[408880583,1774381856770,226.77,0.00010024,2]
[408880584,1774381856829,226.77,0.00010425,2]
[408880585,1774381856944,226.77,0.00010826,2]
[408880586,1774381857158,226.77,0.00011227,2]
[408880587,1774381857366,226.77,0.00011628,2]
[408880588,1774381887355,1670.2,0.00011507,2]
[408880595,1774382806129,-705.39411627,0.00011966,2]
[408880596,1774382840078,-13.47978882,0.00011966,2]
[408880597,1774382840098,-324.81122486,0.00011972,2]
[408880598,1774382840117,-121.49789308,0.00011978,2]
[408880599,1774382948147,-250.0,0.00011998,2]
[408880600,1774382948167,-563.44145161,0.00012018,2]
[408880601,1774382948187,-226.77,0.00012029,2]
[408880602,1774382948209,-250.0,0.00012101,2]
[408880603,1774382948230,-226.77,0.0001243,2]
[408880604,1774382948249,-945.63,0.00012592,2]
[408880605,1774382948269,-2000.0,0.00012624,2]
[408880606,1774382948290,-220.4061562,0.00012731,2]
[408880607,1774382948314,-226.77,0.00012831,2]
[408880608,1774382948334,-183.96461819,0.00012968,2]
[408880609,1774382961099,-1016.03538181,0.00012968,2]
[408880610,1774382961120,-300.0,0.00012968,2]
[408880611,1774382961139,-150.0,0.00012968,2]
[408880612,1774382961158,-300.0,0.00012968,2]
[408880613,1774382961178,-3687.95,0.00012969,2]
[408880614,1774382961201,-6475.70969841,0.00012969,2]
[408880615,1774382970094,-3524.28030159,0.00012969,2]
[408880616,1774382970116,-10762.91197697,0.00012969,2]
[408880617,1774382978562,385.5854082,0.0001,2]
[408880623,1774383032049,-2249.33802303,0.00012969,2]
[408880625,1774383032063,-369.7525797,0.00012985,2]
[408880627,1774383032073,-250.0,0.00013,2]
[408880628,1774383032083,-1045.59810829,0.00013163,2]
[408880630,1774383032093,-193.0,0.00013176,2]
[408880632,1774383032103,-250.0,0.00013176,2]
[408880634,1774383032112,-150.0,0.000132,2]
[408880635,1774383032121,-226.77,0.00013232,2]
[408880636,1774383032129,-995.3717396,0.000134,2]
[408880637,1774383032137,-220.4061562,0.00013433,2]
[408880638,1774383032147,-300.0,0.00013522,2]
[408880639,1774383032155,-1200.0,0.00013522,2]
[408880640,1774383032164,-1000.0,0.00013523,2]
[408880641,1774383032173,-2500.0,0.00013523,2]
[408880642,1774383032182,-500.0,0.00013525,2]
[408880643,1774383032190,-500.0,0.00013525,2]
[408880644,1774383032199,-200.0,0.00013525,2]
[408880645,1774383032208,-151.0,0.00013525,2]
[408880646,1774383032217,-151.0,0.00013525,2]
[408880647,1774383032225,-299.53331993,0.00013532,2]
[408880648,1774383032235,-4733.492,0.00013532,2]
[408880649,1774383032244,-175.607,0.00013532,2]
[408880650,1774383032253,-1332.86279245,0.00013533,2]
[408880651,1774383032262,-150.27399702,0.00013533,2]
[408880652,1774383032270,-27938.15892033,0.00013533,2]
[408880653,1774383032280,-644.83652763,0.00013533,2]
[408880654,1774383032290,-2452.93953344,0.00013549,2]
[408880655,1774383032299,-282.71,0.00013573,2]
[408880656,1774383032309,-353.52089299,0.00013613,2]
[408880657,1774383032319,-500.0,0.00013622,2]
[408880658,1774383032329,-500.0,0.00013622,2]
[408880659,1774383032339,-391.68107066,0.00013622,2]
[408880661,1774383032348,-500.0,0.00013622,2]
[408880663,1774383032357,-500.0,0.00013622,2]
[408880665,1774383032367,-500.0,0.00013622,2]
[408880667,1774383032376,-500.0,0.00013622,2]
[408880669,1774383032386,-500.0,0.00013622,2]
[408880671,1774383032395,-500.0,0.00013622,2]
[408880673,1774383032404,-500.0,0.00013622,2]
[408880675,1774383032414,-671.24114238,0.00013622,2]
[408880677,1774383032423,-671.24114238,0.00013622,2]
[408880679,1774383032432,-671.24114238,0.00013622,2]
[408880681,1774383032442,-671.24114238,0.00013622,2]
[408880683,1774383032451,-671.24114238,0.00013622,2]
[408880685,1774383032460,-671.24114238,0.00013622,2]
[408880687,1774383032469,-671.24114238,0.00013622,2]
[408880689,1774383032479,-671.24114238,0.00013622,2]
[408880691,1774383032488,-671.24114238,0.00013622,2]
[408880693,1774383032497,-671.24114238,0.00013622,2]
[408880695,1774383032506,-671.24114238,0.00013622,2]
[408880697,1774383032516,-671.24114238,0.00013622,2]
[408880699,1774383032525,-671.24114238,0.00013622,2]
[408880701,1774383032534,-671.24114238,0.00013622,2]
[408880703,1774383032543,-671.24114238,0.00013622,2]
[408880705,1774383032552,-671.24114238,0.00013622,2]
[408880707,1774383032561,-671.24114238,0.00013622,2]
[408880709,1774383032569,-671.24114238,0.00013622,2]
[408880711,1774383032578,-671.24114238,0.00013622,2]
[408880712,1774383032588,-671.24114238,0.00013622,2]
[408880714,1774383032597,-671.24114238,0.00013622,2]
[408880716,1774383032606,-671.24114238,0.00013622,2]
[408880718,1774383032614,-671.24114238,0.00013622,2]
[408880720,1774383032623,-671.24114238,0.00013622,2]
[408880722,1774383032632,-671.24114238,0.00013622,2]
[408880724,1774383032642,-671.24114238,0.00013622,2]
[408880726,1774383032651,-671.24114238,0.00013622,2]
[408880728,1774383032660,-671.24114238,0.00013622,2]
[408880730,1774383032669,-671.24114238,0.00013622,2]
[408880732,1774383032678,-671.24114238,0.00013622,2]
[408880734,1774383032687,-671.24114238,0.00013622,2]
[408880736,1774383032696,-671.24114238,0.00013622,2]
[408880738,1774383032705,-671.24114238,0.00013622,2]
[408880740,1774383032714,-671.24114238,0.00013622,2]
[408880742,1774383032723,-671.24114238,0.00013622,2]
[408880744,1774383032732,-671.24114238,0.00013622,2]
[408880746,1774383032742,-671.24114238,0.00013622,2]
[408880748,1774383032751,-671.24114238,0.00013622,2]
[408880749,1774383032760,-671.24114238,0.00013622,2]
[408880750,1774383032770,-671.24114238,0.00013622,2]
[408880751,1774383032781,-671.24114238,0.00013622,2]
[408880752,1774383032790,-671.24114238,0.00013622,2]
[408880753,1774383032798,-671.24114238,0.00013622,2]
[408880754,1774383032807,-671.24114238,0.00013622,2]
[408880755,1774383032818,-671.24114238,0.00013622,2]
[408880756,1774383032827,-671.24114238,0.00013622,2]
[408880757,1774383032836,-671.24114238,0.00013622,2]
[408880758,1774383032846,-671.24114238,0.00013622,2]
[408880759,1774383032855,-671.24114238,0.00013622,2]
[408880760,1774383032863,-671.24114238,0.00013622,2]
[408880761,1774383032872,-671.24114238,0.00013622,2]
[408880762,1774383032881,-671.24114238,0.00013622,2]
[408880763,1774383032891,-671.24114238,0.00013622,2]
[408880764,1774383032900,-671.24114238,0.00013622,2]
[408880765,1774383032909,-671.24114238,0.00013622,2]
[408880766,1774383032919,-671.24114238,0.00013622,2]
[408880767,1774383032928,-671.24114238,0.00013622,2]
[408880768,1774383032936,-671.24114238,0.00013622,2]
[408880769,1774383032947,-671.24114238,0.00013622,2]
[408880770,1774383032956,-671.24114238,0.00013622,2]
[408880771,1774383033194,-671.24114238,0.00013622,2]
[408880772,1774383033204,-671.24114238,0.00013622,2]
[408880773,1774383033214,-511.97952519,0.00013622,2]
[408880774,1774383033223,-671.24114239,0.00013622,2]
[408880775,1774383033233,-671.24114239,0.00013622,2]
[408880776,1774383033242,-671.24114239,0.00013622,2]
[408880777,1774383033251,-671.24114239,0.00013622,2]
[408880778,1774383033260,-671.24114239,0.00013622,2]
[408880779,1774383033270,-671.24114239,0.00013622,2]
[408880780,1774383033279,-160.65337443,0.00013622,2]
[408880781,1774383033292,-361.85356594,0.00013622,2]
[408880782,1774383033319,-148.73420202,0.00013622,2]
[408880783,1774383033328,-671.24114239,0.00013622,2]
[408880784,1774383033337,-671.24114239,0.00013622,2]
[408880785,1774383033346,-671.24114239,0.00013622,2]
[408880786,1774383033355,-671.24114239,0.00013622,2]
[408880787,1774383033364,-671.24114239,0.00013622,2]
[408880788,1774383033375,-671.24114239,0.00013622,2]
[408880789,1774383033384,-671.24114239,0.00013622,2]
[408880790,1774383033394,-671.24114239,0.00013622,2]
[408880791,1774383033404,-153.90305926,0.00013622,2]
[408880792,1774383033415,-517.33808313,0.00013622,2]
[408880793,1774383033424,-598.00072711,0.00013622,2]
[408880794,1774383033435,-73.24041528,0.00013622,2]
[408880795,1774383033444,-364.19634972,0.00013622,2]
[408880796,1774383033456,-307.04479267,0.00013622,2]
[408880797,1774383033465,-218.75195774,0.00013622,2]
[408880798,1774383033479,-349.05701941,0.00013622,2]
[408880800,1774383038092,-103.43216524,0.00013622,2]
[408880801,1774383038111,-671.24114239,0.00013622,2]
[408880802,1774383038126,-245.62253044,0.00013622,2]
[408880803,1774383038199,-425.61861195,0.00013622,2]
[408880804,1774383038214,-671.24114239,0.00013622,2]
[408880805,1774383038229,-671.24114239,0.00013622,2]
[408880806,1774383038244,-162.67034699,0.00013622,2]
[408880807,1774383038263,-508.5707954,0.00013622,2]
[408880808,1774383038277,-652.57468438,0.00013622,2]
[408880809,1774383038294,-18.66645801,0.00013622,2]
[408880810,1774383038308,-671.24114239,0.00013622,2]
[408880811,1774383038322,-671.24114239,0.00013622,2]
[408880812,1774383038335,-19.06347269,0.00013622,2]
[408880813,1774383038352,-347.32,0.00013622,2]
[408880814,1774383038369,-133.61652731,0.00013622,2]
[408880815,1774383038383,-150.13921751,0.00013622,2]
[408880816,1774383038397,-117.184033,0.00013622,2]
[408880817,1774383038418,-382.815967,0.00013622,2]
[408880818,1774383038432,-500.0,0.00013622,2]
[408880819,1774383038445,-500.0,0.00013622,2]
[408880820,1774383038459,-500.0,0.00013622,2]
[408880821,1774383038473,-500.0,0.00013622,2]
[408880822,1774383038486,-671.2411423,0.00013622,2]
[408880823,1774383038499,-12659.36853348,0.00013623,2]
[408880824,1774383038516,-965.60128741,0.00013623,2]
[408880826,1774383038532,-888.5671607,0.00013623,2]
[408880827,1774383038553,-1485486.46301841,0.00013623,2]
[408880828,1774383038566,-226.77,0.00013633,2]
[408880829,1774383038580,-1589.56,0.00013644,14]
[408880830,1774383038593,-500.30675433,0.00013673,2]
[408880831,1774383038606,-500.0,0.00013673,2]
[408880832,1774383038618,-500.0,0.00013673,2]
[408880833,1774383038636,-500.0,0.00013673,2]
[408880834,1774383038650,-300.28216329,0.00013673,2]
[408880835,1774383038663,-500.0,0.00013673,2]
[408880836,1774383038677,-500.26487115,0.00013673,2]
[408880837,1774383038689,-167.44711356,0.00013673,2]
[408880838,1774383038702,-500.0,0.00013673,2]
[408880839,1774383038715,-500.0,0.00013673,2]
[408880840,1774383038728,-164.21522063,0.00013673,2]
[408880841,1774383038742,-218.71564775,0.00013673,2]
[408880842,1774383038755,-500.0,0.00013673,2]
[408880843,1774383038768,-169.39313664,0.00013673,2]
[408880844,1774383038787,-160.23496201,0.00013673,2]
[408880845,1774383038799,-500.0,0.00013673,2]
[408880846,1774383038812,-500.0,0.00013673,2]
[408880847,1774383038828,-500.0,0.00013673,2]
[408880848,1774383038840,-500.59361251,0.00013673,2]
[408880849,1774383038854,-500.0,0.00013673,2]
[408880850,1774383038867,-241.03734395,0.00013673,2]
[408880851,1774383038880,-500.0,0.00013673,2]
[408880852,1774383038893,-500.0,0.00013673,2]
[408880853,1774383038906,-500.0,0.00013673,2]
[408880854,1774383038918,-500.0,0.00013673,2]
[408880855,1774383038931,-501.38646377,0.00013673,2]
[408880856,1774383038944,-500.0,0.00013698,2]
[408880857,1774383038956,-500.0,0.00013698,2]
[408880858,1774383038969,-500.0,0.00013698,2]
[408880859,1774383038983,-500.0,0.00013698,2]
[408880860,1774383038996,-500.0,0.00013698,2]
[408880861,1774383039008,-500.0,0.00013698,2]
[408880862,1774383039021,-500.0,0.00013698,2]
[408880863,1774383039034,-500.0,0.00013698,2]
[408880864,1774383039048,-500.0,0.00013698,2]
[408880865,1774383039061,-500.0,0.00013698,2]
[408880866,1774383039074,-500.0,0.00013698,2]
[408880867,1774383039088,-500.0,0.00013698,2]
[408880868,1774383039101,-500.0,0.00013698,2]
[408880869,1774383039114,-500.0,0.00013698,2]
[408880870,1774383039127,-500.0,0.00013698,2]
[408880871,1774383039139,-500.0,0.00013698,2]
[408880872,1774383039153,-500.0,0.00013698,2]
[408880873,1774383039165,-563.70890882,0.00013698,2]
[408880874,1774383039178,-500.0,0.00013698,2]
[408880875,1774383039192,-500.0,0.00013698,2]
[408880876,1774383039204,-500.0,0.00013698,2]
[408880877,1774383039217,-500.0,0.00013698,2]
[408880878,1774383039230,-500.0,0.00013698,2]
[408880879,1774383039243,-500.0,0.00013698,2]
[408880880,1774383039256,-500.0,0.00013698,2]
[408880881,1774383039268,-391.0509546,0.00013698,2]
[408880882,1774383039281,-500.0,0.00013698,2]
[408880883,1774383039294,-500.0,0.00013698,2]
[408880884,1774383039307,-500.0,0.00013698,2]
[408880885,1774383039320,-500.0,0.00013698,2]
[408880886,1774383039333,-500.0,0.00013698,2]
[408880887,1774383039345,-500.0,0.00013698,2]
[408880888,1774383039358,-500.0,0.00013698,2]
[408880889,1774383039370,-500.0,0.00013698,2]
[408880890,1774383039382,-500.0,0.00013698,2]
[408880891,1774383039395,-582.40708321,0.00013698,2]
[408880892,1774383039408,-500.0,0.00013698,2]
[408880893,1774383039421,-508.75121093,0.00013698,2]
[408880894,1774383039433,-500.0,0.00013698,2]
[408880895,1774383039446,-500.0,0.00013698,2]
[408880896,1774383039459,-500.0,0.00013698,2]
[408880897,1774383039471,-500.0,0.00013698,2]
[408880898,1774383039483,-500.0,0.00013698,2]
[408880899,1774383039496,-500.0,0.00013698,2]
[408880900,1774383039509,-500.0,0.00013698,2]
[408880901,1774383039523,-500.0,0.00013698,2]
[408880902,1774383039538,-592.87556982,0.00013698,2]
[408880903,1774383039551,-500.0,0.00013698,2]
[408880904,1774383039564,-500.0,0.00013698,2]
[408880905,1774383039576,-500.0,0.00013698,2]
[408880906,1774383039590,-500.0,0.00013698,2]
[408880907,1774383039602,-500.0,0.00013698,2]
[408880908,1774383039615,-500.0,0.00013698,2]
[408880909,1774383039624,-500.0,0.00013698,2]
[408880910,1774383039635,-500.0,0.00013698,2]
[408880911,1774383039645,-500.0,0.00013698,2]
[408880912,1774383039654,-500.0,0.00013698,2]
[408880913,1774383039663,-500.0,0.00013698,2]
[408880914,1774383039672,-500.0,0.00013698,2]
[408880915,1774383039681,-500.0,0.00013698,2]
[408880916,1774383039689,-500.0,0.00013698,2]
[408880917,1774383039698,-500.0,0.00013698,2]
[408880918,1774383039707,-500.0,0.00013698,2]
[408880919,1774383039716,-500.0,0.00013698,2]
[408880920,1774383039725,-500.0,0.00013698,2]
[408880921,1774383039735,-500.0,0.00013698,2]
[408880922,1774383039744,-500.0,0.00013698,2]
[408880923,1774383039753,-500.0,0.00013698,2]
[408880924,1774383039762,-500.0,0.00013698,2]
[408880925,1774383039772,-500.0,0.00013698,2]
[408880926,1774383040184,-500.0,0.00013698,2]
[408880927,1774383040216,-500.0,0.00013698,2]
[408880928,1774383040229,-500.0,0.00013698,2]
[408880929,1774383040238,-500.0,0.00013698,2]
[408880930,1774383040247,-500.0,0.00013698,2]
[408880931,1774383040257,-513.0801442,0.00013698,2]
[408880932,1774383040266,-500.0,0.00013698,2]
[408880934,1774383040275,-500.0,0.00013698,2]
[408880936,1774383040285,-500.0,0.00013698,2]
[408880937,1774383040295,-500.0,0.00013698,2]
[408880938,1774383040304,-500.0,0.00013698,2]
[408880939,1774383040313,-500.0,0.00013698,2]
[408880940,1774383040323,-500.0,0.00013699,2]
[408880941,1774383040332,-176.398221,0.00013699,2]
[408880942,1774383040341,-500.0,0.00013699,2]
[408880943,1774383040351,-1150.75,0.000137,2]
[408880944,1774383040360,-2854.82,0.000137,2]
[408880945,1774383040369,-4927.71,0.000137,2]
[408880946,1774383040378,-4130.91,0.000137,2]
[408880947,1774383040387,-200.0,0.000137,5]
[408880948,1774383040397,-27938.15892031,0.00013796,2]
[408880949,1774383040406,-400.0,0.000138,5]
[408880950,1774383040415,-150.0,0.000138,2]
[408880951,1774383040424,-644.83652762,0.00013871,2]
[408880952,1774383040433,-500.0,0.00013896,2]
[408880953,1774383040443,-600.0,0.000139,5]
[408880954,1774383040452,-34182.8778,0.00013924,2]
[408880955,1774383040461,-1332.86279244,0.00013928,2]
[408880956,1774383040470,-150.58347309,0.00013934,2]
[408880957,1774383040479,-150.0,0.0001398,2]
[408880958,1774383040487,-500.0,0.00014023,2]
[408880959,1774383040496,-500.0,0.00014023,2]
[408880960,1774383040505,-500.0,0.00014023,2]
[408880961,1774383040514,-500.0,0.00014023,2]
[408880962,1774383040523,-500.0,0.00014023,2]
[408880963,1774383040532,-500.0,0.00014023,2]
[408880964,1774383040540,-500.0,0.00014023,2]
[408880965,1774383040549,-500.0,0.00014023,2]
[408880966,1774383040558,-500.0,0.00014023,2]
[408880967,1774383040567,-32991.3775,0.00014024,2]
[408880968,1774383040577,-226.77,0.00014034,2]
[408880969,1774383040586,-27938.15892031,0.00014059,2]
[408880970,1774383040595,-200.0,0.00014063,2]
[408880971,1774383040605,-255.0,0.00014071,2]
[408880972,1774383040614,-200.0,0.00014073,2]
[408880973,1774383040623,-546.04543671,0.00014124,2]
[408880974,1774383040632,-500.0,0.00014124,2]